bitfinex/quotes_SOLUSD_20260223
["timestamp","ask_amount","ask_price","bid_price","bid_amount"]
[1771818142232,3.69383402,77.956,77.921,0.47628738]
[1771818142433,0.49093917,77.954,77.921,0.47628738]
[1771818142635,0.49093917,77.954,77.93,8.4486084]
[1771818144739,0.49093917,77.948,77.91,8.4486084]
[1771818145035,0.49093917,77.948,77.911,0.47628738]
[1771818145218,6.90681129,77.953,77.931,0.47628738]
[1771818145423,7.39775046,77.953,77.931,0.47628738]
[1771818145735,0.49093917,77.952,77.931,0.47628738]
[1771818154143,0.49093917,77.951,77.931,0.47628738]
[1771818154727,0.49093917,77.95,77.931,0.47628738]
[1771818154936,0.49093917,77.95,77.925,0.47628738]
[1771818156127,0.49093917,77.949,77.91,8.92489578]
[1771818156321,0.49093917,77.939,77.91,0.47628738]
[1771818157442,0.49093917,77.949,77.921,0.47628738]
[1771818157645,0.49093917,77.945,77.921,0.47628738]
[1771818158852,0.49093917,77.943,77.921,0.47628738]
[1771818159057,0.49093917,77.943,77.913,0.47628738]
[1771818159853,0.49093917,77.939,77.908,0.47628738]
[1771818160354,0.49093917,77.939,77.911,0.47628738]
[1771818161434,0.49093917,77.937,77.911,0.47628738]
[1771818164156,0.49093917,77.935,77.91,8.4486084]
[1771818164340,0.49093917,77.935,77.91,8.92489578]
[1771818166545,0.49093917,77.933,77.91,8.92489578]
[1771818168049,0.49093917,77.933,77.911,0.47628738]
[1771818168858,0.48626627,77.931,77.904,0.49555065]
[1771818169047,0.48626627,77.929,77.899,0.49555065]
[1771818170454,0.48626627,77.929,77.858,51.37502386]
[1771818170455,0.48626627,77.927,77.901,0.49555065]
[1771818173357,0.48626627,77.927,77.903,0.49555065]
[1771818173563,0.48626627,77.927,77.91,0.49555065]
[1771818174958,0.48626627,77.927,77.871,51.36647537]
[1771818174959,0.48626627,77.919,77.866,0.49555065]
[1771818175260,0.48626627,77.909,77.88,0.49555065]
[1771818175949,0.48626627,77.909,77.881,0.49555065]
[1771818176559,0.48626627,77.899,77.86,0.49555065]
[1771818176759,0.48626627,77.889,77.861,0.49555065]
[1771818176971,0.48626627,77.889,77.862,0.49555065]
[1771818178665,0.48626627,77.889,77.864,0.49555065]
[1771818178966,0.48626627,77.913,77.881,0.49555065]
[1771818180372,0.48626627,77.909,77.881,0.49555065]
[1771818182371,6.90681129,77.919,77.883,0.49555065]
[1771818182372,13.3207654,77.915,77.883,0.49555065]
[1771818182670,0.48626627,77.914,77.891,0.49555065]
[1771818184269,0.48626627,77.914,77.883,0.49555065]
[1771818184470,8.4486084,77.91,77.88,8.4486084]
[1771818184679,0.48626627,77.912,77.881,0.49555065]
[1771818185050,0.48626627,77.909,77.874,0.49555065]
[1771818185365,0.48626627,77.908,77.874,0.49555065]
[1771818186455,0.48626627,77.906,77.876,0.49555065]
[1771818186756,0.48626627,77.906,77.881,0.49555065]
[1771818189770,12.83614658,77.905,77.881,0.49555065]
[1771818189974,0.48626627,77.904,77.881,0.49555065]
[1771818191774,0.48626627,77.902,77.88,8.9494912]
[1771818192375,0.48626627,77.902,77.881,0.49555065]
[1771818195064,13.32307195,77.901,77.881,0.49555065]
[1771818195569,0.48626627,77.9,77.881,0.49555065]
[1771818196387,12.83680568,77.901,77.872,12.84143311]
[1771818196388,0.48626627,77.898,77.873,0.49555065]
[1771818199693,0.49359035,77.901,77.881,0.47116672]
[1771818199878,0.49359035,77.9,77.881,0.47116672]
[1771818202190,0.49359035,77.898,77.881,0.47116672]
[1771818202887,8.45394055,77.91,77.87,8.45394055]
[1771818202888,0.49359035,77.91,77.89,8.45394055]
[1771818203072,0.49359035,77.91,77.891,0.47116672]
[1771818203589,0.49359035,77.91,77.851,51.38007592]
[1771818203590,0.49359035,77.894,77.838,12.84713604]
[1771818203774,3.69383402,77.906,77.802,51.41193509]
[1771818203775,0.49359035,77.879,77.85,8.45394055]
[1771818204884,0.49359035,77.879,77.841,12.84670032]
[1771818205283,0.49359035,77.879,77.84,8.65394055]
[1771818205790,0.49359035,77.877,77.841,0.47116672]
[1771818207293,0.49359035,77.877,77.843,0.47116672]
[1771818207592,0.49359035,77.877,77.851,0.47116672]
[1771818209381,0.49359035,77.875,77.851,0.47116672]
[1771818209767,12.8409266,77.876,77.851,0.47116672]
[1771818209768,0.49359035,77.873,77.851,0.47116672]
[1771818210288,13.3336843,77.882,77.854,0.47116672]
[1771818210486,13.3336843,77.882,77.852,12.84488516]
[1771818210487,0.49359035,77.889,77.87,8.45394055]
[1771818210669,12.83865085,77.89,77.871,0.47116672]
[1771818210875,0.49359035,77.894,77.871,0.47116672]
[1771818211070,12.83812409,77.893,77.871,0.47116672]
[1771818211275,0.49359035,77.892,77.861,0.47116672]
[1771818211586,0.49359035,77.892,77.871,0.47116672]
[1771818211987,0.49359035,77.891,77.871,0.47116672]
[1771818215406,0.49359035,77.89,77.863,0.47116672]
[1771818220800,0.49359035,77.89,77.856,0.47116672]
[1771818220801,0.49359035,77.888,77.856,0.47116672]
[1771818220991,0.49359035,77.886,77.854,12.84448765]
[1771818222502,0.49359035,77.884,77.854,13.31565437]
[1771818224405,6.8,77.883,77.854,13.31565437]
[1771818224705,0.49359035,77.88,77.855,0.47116672]
[1771818228310,0.49359035,77.878,77.849,0.47116672]
[1771818228515,0.49359035,77.866,77.834,0.47116672]
[1771818229607,0.4889429,77.864,77.834,0.47116672]
[1771818230616,0.4889429,77.864,77.84,8.65394055]
[1771818233210,0.4889429,77.862,77.84,8.65394055]
[1771818235516,0.4889429,77.86,77.84,0.2]
[1771818235815,0.4889429,77.86,77.84,8.65394055]
[1771818239024,6.8,77.859,77.84,8.65394055]
[1771818239629,0.4889429,77.858,77.84,8.65394055]
[1771818241709,6.8,77.859,77.841,0.46752766]
[1771818242027,0.4889429,77.873,77.851,0.46752766]
[1771818242224,0.4889429,77.873,77.86,8.45394055]
[1771818242429,1.7889429,77.872,77.86,8.45394055]
[1771818244228,1.7889429,77.872,77.855,0.46752766]
[1771818244619,1.7889429,77.872,77.84,0.2]
[1771818244620,0.4889429,77.888,77.86,8.92146821]
[1771818244817,0.4889429,77.888,77.87,8.45394055]
[1771818245413,0.4889429,77.888,77.86,0.46752766]
[1771818245610,0.4889429,77.888,77.86,8.92146821]
[1771818246116,1.3,77.889,77.861,0.46752766]
[1771818246430,115.48888096,77.93,77.759,12.83702152]
[1771818246431,0.4889429,77.906,77.881,0.46752766]
[1771818249142,103.7,77.929,77.85,8.45394055]
[1771818249143,0.4889429,77.934,77.901,0.46752766]
[1771818249457,0.4889429,77.919,77.882,12.83993734]
[1771818250443,0.4889429,77.909,77.874,12.84115156]
[1771818251337,0.4889429,77.909,77.875,0.09870509]
[1771818251834,0.4889429,77.918,77.881,0.09870509]
[1771818252039,0.4889429,77.909,77.881,0.09870509]
[1771818254038,0.4889429,77.909,77.882,0.09870509]
[1771818255041,0.4889429,77.923,77.891,0.09870509]
[1771818255841,0.4889429,77.919,77.891,0.09870509]
[1771818257139,0.49916334,77.932,77.901,0.09870509]
[1771818259126,0.49916334,77.932,77.902,0.09870509]
[1771818259432,0.47873316,77.938,77.902,0.09870509]
[1771818260350,0.47873316,77.958,77.931,0.09870509]
[1771818260851,0.47873316,77.958,77.925,0.09870509]
[1771818261230,0.47873316,77.949,77.911,0.09870509]
[1771818262357,0.47873316,77.949,77.921,0.09870509]
[1771818264053,0.2,77.96,77.941,0.09870509]
[1771818264234,0.67873316,77.96,77.935,0.09870509]
[1771818264434,0.67873316,77.96,77.94,8.54539273]
[1771818264960,1.3,78.028,77.952,0.45478762]
[1771818265143,1.3,78.028,77.971,0.45478762]
[1771818265144,0.1,78.0,77.971,0.45478762]
[1771818265452,8.44668764,77.99,77.951,0.45478762]
[1771818265658,8.44668764,77.98,77.944,0.45478762]
[1771818266149,8.44668764,77.98,77.946,0.45478762]
[1771818266559,3.69383402,77.995,77.935,12.83110221]
[1771818266560,8.44668764,77.97,77.935,12.83110221]
[1771818267059,0.47873316,77.969,77.936,0.45478762]
[1771818268250,32.05638817,77.988,77.93,8.44668764]
[1771818268251,0.47873316,77.959,77.93,12.83196229]
[1771818268655,0.47873316,77.959,77.923,0.45478762]
[1771818268855,0.47873316,77.959,77.924,0.45478762]
[1771818270758,0.47873316,77.957,77.918,0.45478762]
[1771818270948,0.47873316,77.949,77.91,8.44668764]
[1771818271252,0.47873316,77.949,77.911,0.45478762]
[1771818272047,0.47873316,77.939,77.902,0.45478762]
[1771818272962,0.47873316,77.97,77.931,0.45478762]
[1771818273260,0.47873316,77.97,77.941,0.45478762]
[1771818273554,0.47873316,77.977,77.951,0.45478762]
[1771818274757,0.47873316,77.977,77.94,0.45478762]
[1771818275064,0.47873316,77.969,77.933,0.45478762]
[1771818276051,0.47873316,77.967,77.934,12.83137013]
[1771818276657,0.47873316,77.967,77.934,13.28615775]
[1771818276859,0.47873316,77.967,77.935,0.45478762]
[1771818277057,0.47873316,77.967,77.936,12.83104085]
[1771818277361,21.10268957,77.97,77.93,21.10268957]
[1771818277362,0.47873316,77.965,77.93,21.10268957]
[1771818277566,0.47873316,77.965,77.931,13.2866517]
[1771818277763,0.47873316,77.965,77.932,0.45478762]
[1771818280161,21.10268957,77.96,77.93,0.45478762]
[1771818280467,0.47873316,77.959,77.925,0.45478762]
[1771818281164,0.47873316,77.959,77.92,33.93636185]
[1771818281470,0.47873316,77.959,77.92,34.39114947]
[1771818281651,12.82643271,77.964,77.919,0.45478762]
[1771818281652,0.47873316,77.949,77.919,0.45478762]
[1771818281961,0.47873316,77.949,77.92,21.10268957]
[1771818282364,0.47873316,77.949,77.921,0.45478762]
[1771818283055,0.47873316,77.949,77.922,0.45478762]
[1771818286262,0.47873316,77.974,77.941,0.45478762]
[1771818286469,0.47873316,77.969,77.931,0.45478762]
[1771818287672,0.47873316,77.968,77.933,0.45478762]
[1771818288370,0.47873316,77.959,77.921,0.45478762]
[1771818289177,0.47873316,77.959,77.931,0.45227725]
[1771818289547,0.46155887,77.958,77.931,0.45227725]
[1771818289958,0.46155887,77.957,77.931,0.45227725]
[1771818290155,0.46155887,77.957,77.93,21.10268957]
[1771818290156,0.46155887,77.949,77.91,21.10268957]
[1771818290355,0.46155887,77.949,77.911,0.45227725]
[1771818291876,0.46155887,77.947,77.911,0.45227725]
[1771818294358,21.10268957,77.94,77.911,0.45227725]
[1771818294678,0.46155887,77.939,77.911,0.45227725]
[1771818295068,0.46155887,77.969,77.931,0.45227725]
[1771818295252,12.8251167,77.972,77.931,0.45227725]
[1771818295253,0.46155887,77.967,77.931,0.45227725]
[1771818295458,0.46155887,77.966,77.931,0.45227725]
[1771818296557,0.46155887,77.964,77.931,0.45227725]
[1771818299067,0.46155887,77.962,77.931,0.45227725]
[1771818301578,0.46155887,77.971,77.941,0.45227725]
[1771818302784,0.46155887,77.969,77.929,0.45227725]
[1771818302975,0.46155887,77.959,77.931,0.45227725]
[1771818306287,0.46155887,77.957,77.92,21.09984792]
[1771818306483,0.46155887,77.949,77.919,13.28607998]
[1771818307275,0.46155887,77.949,77.911,0.45227725]
[1771818308497,0.46155887,77.949,77.874,51.3647598]
[1771818308498,0.46155887,77.939,77.905,0.45227725]
[1771818308967,0.46155887,77.929,77.891,0.45227725]
[1771818309171,0.46155887,77.929,77.884,12.83960762]
[1771818309172,0.46155887,77.929,77.9,21.09984792]
[1771818309384,0.46155887,77.929,77.901,0.45227725]
[1771818311301,21.09984792,77.94,77.901,0.45227725]
[1771818311302,0.46155887,77.927,77.901,0.45227725]
[1771818313500,13.29424629,77.926,77.901,0.45227725]
[1771818313888,0.46155887,77.925,77.901,0.45227725]
[1771818317010,13.31560546,77.924,77.901,0.45227725]
[1771818317898,0.48258868,77.923,77.901,0.45227725]
[1771818318099,0.48258868,77.923,77.864,3.69383402]
[1771818318100,0.48258868,77.909,77.851,0.46110975]
[1771818318297,21.12020989,77.9,77.871,0.46110975]
[1771818318497,0.48258868,77.906,77.881,0.46110975]
[1771818318685,3.69383402,77.927,77.851,44.95767554]
[1771818318686,0.49872229,77.918,77.891,0.47743825]
[1771818322507,0.49872229,77.916,77.891,0.47743825]
[1771818322891,0.49872229,77.899,77.871,0.47743825]
[1771818324109,0.49872229,77.889,77.857,0.47743825]
[1771818324309,0.49872229,77.889,77.861,0.47743825]
[1771818325809,0.49872229,77.887,77.861,0.47743825]
[1771818327015,32.09096367,77.904,77.855,0.47743825]
[1771818327016,0.49872229,77.885,77.855,0.47743825]
[1771818327696,0.49872229,77.885,77.85,8.64938696]
[1771818327697,0.49872229,77.879,77.85,0.2]
[1771818327897,0.49872229,77.879,77.85,0.67743825]
[1771818328915,0.49872229,77.878,77.851,0.47743825]
[1771818331615,0.49872229,77.876,77.85,0.2]
[1771818331798,0.49872229,77.876,77.85,0.67743825]
[1771818331994,0.49872229,77.869,77.85,0.2]
[1771818332197,0.49872229,77.881,77.851,0.47743825]
[1771818332420,0.49872229,77.896,77.861,0.47743825]
[1771818332919,0.49872229,77.902,77.879,0.47743825]
[1771818333100,0.49872229,77.901,77.88,8.44938696]
[1771818333803,13.33569276,77.9,77.879,0.47743825]
[1771818335718,0.49872229,77.899,77.879,0.47743825]
[1771818337522,12.83730005,77.898,77.879,0.47743825]
[1771818339023,0.49872229,77.898,77.871,0.47743825]
[1771818339613,0.49872229,77.898,77.872,0.47743825]
[1771818340229,1.3,77.909,77.881,0.47743825]
[1771818340230,0.49872229,77.907,77.881,0.47743825]
[1771818340410,0.49872229,77.908,77.881,0.47743825]
[1771818342127,0.49872229,77.906,77.881,0.47743825]
[1771818342323,0.49872229,77.906,77.85,8.64938696]
[1771818342324,8.44938696,77.9,77.869,0.47743825]
[1771818342508,0.49872229,77.889,77.851,0.47743825]
[1771818343208,0.49872229,77.887,77.861,0.47743825]
[1771818346225,0.49872229,77.885,77.861,0.47743825]
[1771818346626,0.49872229,77.885,77.85,8.64938696]
[1771818346812,0.49872229,77.879,77.85,0.2]
[1771818348911,0.45266229,77.877,77.85,0.2]
[1771818349325,0.45266229,77.877,77.85,0.67450821]
[1771818349629,0.45266229,77.877,77.85,9.12389517]
[1771818350032,0.45266229,77.877,77.851,0.47450821]
[1771818351631,12.8409266,77.876,77.852,0.47450821]
[1771818352329,0.45266229,77.875,77.852,0.47450821]
[1771818354541,0.45266229,77.873,77.852,0.47450821]
[1771818354833,0.45266229,77.873,77.85,8.64938696]
[1771818356626,0.45266229,77.873,77.85,0.2]
[1771818357017,0.45266229,77.871,77.85,0.2]
[1771818357414,12.84158619,77.872,77.84,8.64938696]
[1771818357415,0.45266229,77.869,77.84,0.2]
[1771818358119,0.45266229,77.869,77.84,9.12389517]
[1771818358532,0.45266229,77.867,77.841,0.47450821]
[1771818361545,0.45266229,77.865,77.841,0.47450821]
[1771818361745,13.29444102,77.871,77.843,0.47450821]
[1771818361927,0.45266229,77.877,77.851,0.47450821]
[1771818362445,32.09753923,77.888,77.851,0.47450821]
[1771818362446,0.45266229,77.876,77.851,0.47450821]
[1771818364824,12.84109149,77.875,77.851,0.47450821]
[1771818370651,0.45266229,77.875,77.851,0.47450821]
[1771818374465,44.94439735,77.874,77.842,0.47450821]
[1771818374765,1.3,77.889,77.851,0.47450821]
[1771818374766,12.84058834,77.879,77.851,0.47450821]
[1771818375064,32.09845575,77.886,77.853,0.47450821]
[1771818375065,0.45266229,77.878,77.853,0.47450821]
[1771818375366,0.45266229,77.885,77.861,0.47450821]
[1771818377096,12.83894823,77.888,77.861,0.47450821]
[1771818377258,0.48375894,77.903,77.871,0.47202321]
[1771818378539,6.71254984,77.93,77.881,0.47202321]
[1771818378540,0.47930761,77.915,77.881,0.47202321]
[1771818379157,0.47930761,77.915,77.883,0.45634217]
[1771818380047,0.47930761,77.909,77.883,0.45634217]
[1771818380250,0.47930761,77.909,77.872,0.45634217]
[1771818380466,0.47930761,77.899,77.872,0.45634217]
[1771818381367,8.93782476,77.89,77.872,0.45634217]
[1771818381572,0.47930761,77.89,77.872,0.45634217]
[1771818381972,0.47930761,77.89,77.866,0.45634217]
[1771818383082,0.47930761,77.879,77.852,0.45634217]
[1771818385592,0.47930761,77.879,77.854,0.45634217]
[1771818386077,0.47930761,77.877,77.854,0.45634217]
[1771818388081,0.47930761,77.875,77.854,0.45634217]
[1771818389988,0.47930761,77.875,77.847,12.84559767]
[1771818389989,0.47930761,77.869,77.848,0.45634217]
[1771818390380,0.47930761,77.869,77.84,0.2]
[1771818390576,0.47930761,77.869,77.842,0.45634217]
[1771818391270,0.47930761,77.849,77.84,0.2]
[1771818391463,0.47930761,77.849,77.81,8.45851715]
[1771818391464,0.47930761,77.849,77.81,0.45634217]
[1771818391670,8.45851715,77.83,77.81,0.45634217]
[1771818391883,0.47930761,77.829,77.81,0.45634217]
[1771818392666,0.47930761,77.827,77.803,0.45634217]
[1771818393667,0.47930761,77.827,77.795,0.45634217]
[1771818394084,0.47930761,77.819,77.795,0.45634217]
[1771818394291,0.47930761,77.819,77.79,0.2]
[1771818395074,0.47930761,77.819,77.791,0.45634217]
[1771818395263,0.47930761,77.819,77.792,0.45634217]
[1771818395669,13.32848397,77.826,77.792,0.45634217]
[1771818395900,0.47930761,77.825,77.792,0.45634217]
[1771818396093,0.47930761,77.823,77.792,0.45634217]
[1771818397618,0.47930761,77.821,77.792,0.45634217]
[1771818399620,0.47930761,77.818,77.79,0.2]
[1771818400017,0.47930761,77.818,77.79,13.05506786]
[1771818400328,0.47930761,77.818,77.79,21.96992718]
[1771818400532,0.47930761,77.818,77.791,0.45634217]
[1771818400727,0.47930761,77.809,77.79,0.65634217]
[1771818400939,0.47930761,77.809,77.79,0.2]
[1771818401730,0.47930761,77.807,77.79,0.2]
[1771818403216,0.47930761,77.799,77.78,0.2]
[1771818403929,0.47930761,77.797,77.78,0.2]
[1771818406623,12.85000192,77.821,77.791,0.45634217]
[1771818408318,8.45851715,77.82,77.791,0.45634217]
[1771818408531,0.46043059,77.818,77.791,0.45634217]
[1771818411133,0.46043059,77.816,77.781,12.85661022]
[1771818411518,0.46043059,77.809,77.781,13.35133646]
[1771818411713,0.46043059,77.809,77.782,0.49472624]
[1771818412932,0.46043059,77.83,77.791,0.49472624]
[1771818413240,0.46043059,77.829,77.793,0.49472624]
[1771818414648,0.46043059,77.828,77.793,0.49472624]
[1771818414823,0.46043059,77.825,77.795,0.49472624]
[1771818415025,8.91894774,77.82,77.795,0.49472624]
[1771818415741,0.46043059,77.819,77.795,0.49472624]
[1771818417742,13.3109279,77.818,77.795,0.49472624]
[1771818419349,12.84979668,77.823,77.795,0.49472624]
[1771818419548,0.46043059,77.822,77.795,0.49472624]
[1771818419925,0.46043059,77.819,77.788,0.49472624]
[1771818420241,0.46043059,77.819,77.791,0.49472624]
[1771818422227,12.85049731,77.818,77.793,0.49472624]
[1771818422428,0.46043059,77.849,77.801,0.49472624]
[1771818422746,0.46043059,77.839,77.811,0.49472624]
[1771818424647,0.46043059,77.837,77.811,0.49472624]
[1771818425049,12.84648974,77.843,77.811,0.49472624]
[1771818425232,13.30692033,77.843,77.811,0.49472624]
[1771818425430,0.46043059,77.842,77.811,0.49472624]
[1771818425631,13.30567234,77.85,77.821,0.49472624]
[1771818425930,12.84456739,77.854,77.83,8.45851715]
[1771818426248,12.84456739,77.854,77.831,0.49472624]
[1771818426447,0.46043059,77.876,77.841,0.49472624]
[1771818426640,0.46043059,77.876,77.843,0.49472624]
[1771818426956,0.46043059,77.891,77.861,0.49472624]
[1771818428538,12.83861856,77.89,77.861,0.49472624]
[1771818429059,21.29713571,77.89,77.861,0.49472624]
[1771818429357,0.46043059,77.889,77.861,0.49472624]
[1771818430246,0.46043059,77.887,77.861,0.49472624]
[1771818432355,12.83927791,77.886,77.861,0.49472624]
[1771818434346,13.2997085,77.886,77.861,0.49472624]
[1771818435352,12.83960762,77.884,77.861,0.49472624]
[1771818439363,0.45170367,77.884,77.861,0.49472624]
[1771818439660,12.83878339,77.889,77.849,0.46764075]
[1771818439661,0.45170367,77.879,77.849,0.46764075]
[1771818439859,0.45170367,77.879,77.85,12.84521515]
[1771818440041,0.45170367,77.879,77.851,0.46764075]
[1771818441368,12.83828891,77.892,77.871,0.46764075]
[1771818441659,12.93707219,77.9,77.871,0.46764075]
[1771818442054,13.38877586,77.9,77.871,0.46764075]
[1771818442259,0.45170367,77.899,77.871,0.46764075]
[1771818444555,12.93707219,77.9,77.871,0.46764075]
[1771818444556,0.45170367,77.897,77.871,0.46764075]
[1771818444759,0.45170367,77.889,77.871,0.46764075]
[1771818445265,0.45170367,77.895,77.871,0.46764075]
[1771818445666,0.45170367,77.893,77.871,0.46764075]
[1771818448473,0.45170367,77.892,77.871,0.46764075]
[1771818448651,12.83714711,77.899,77.872,12.84158619]
[1771818448851,12.83714711,77.899,77.873,0.46764075]
[1771818450272,13.28916852,77.897,77.873,0.46764075]
[1771818451466,0.45170367,77.894,77.873,0.46764075]
[1771818452548,8.5568994,77.9,77.875,0.46764075]
[1771818452765,0.45170367,77.898,77.875,0.46764075]
[1771818460365,13.28916852,77.897,77.875,0.46764075]
[1771818461078,0.45170367,77.896,77.875,0.46764075]
[1771818463985,0.1,77.9,77.881,0.46764075]
[1771818464382,12.83561233,77.909,77.881,0.46764075]
[1771818464563,0.1,77.91,77.891,0.46764075]
[1771818465484,0.1,77.91,77.893,0.46764075]
[1771818469870,0.1,77.91,77.895,0.45904873]
[1771818471470,0.47674198,77.929,77.903,0.45904873]
[1771818474090,0.47674198,77.929,77.905,0.45904873]
[1771818475094,12.83235807,77.928,77.905,0.45904873]
[1771818475299,0.47674198,77.927,77.905,0.45904873]
[1771818475681,0.47674198,77.919,77.881,0.45904873]
[1771818476387,0.47674198,77.917,77.881,0.45904873]
[1771818476796,0.47674198,77.917,77.883,0.45904873]
[1771818477295,0.47674198,77.909,77.882,12.83993734]
[1771818477500,0.47674198,77.909,77.883,0.45904873]
[1771818478795,0.47674198,77.912,77.885,0.45904873]
[1771818479492,0.47674198,77.909,77.885,0.45904873]
[1771818481000,13.31239428,77.908,77.885,0.45904873]
[1771818481495,12.83405223,77.918,77.891,0.45904873]
[1771818481692,12.83405223,77.918,77.9,8.4568994]
[1771818481893,0.47674198,77.935,77.901,0.45904873]
[1771818483379,0.47674198,77.933,77.901,0.45904873]
[1771818484887,0.47674198,77.929,77.901,0.45904873]
[1771818488998,0.47674198,77.927,77.901,0.45904873]
[1771818490999,0.47674198,77.925,77.901,0.45904873]
[1771818493316,0.47674198,77.923,77.901,0.45904873]
[1771818495506,12.83334616,77.922,77.901,0.45904873]
[1771818496008,0.47674198,77.928,77.901,0.45904873]
[1771818496185,0.47674198,77.928,77.903,0.45904873]
[1771818498507,12.83252274,77.927,77.903,0.45904873]
[1771818498721,12.83252274,77.927,77.891,0.47162921]
[1771818498888,0.45393986,77.939,77.901,0.47162921]
[1771818500928,0.45393986,77.937,77.902,0.47162921]
[1771818506505,0.45393986,77.935,77.904,0.47162921]
[1771818506707,12.82791353,77.955,77.921,0.47162921]
[1771818506908,0.45393986,77.959,77.931,0.47162921]
[1771818510927,0.45393986,77.957,77.931,0.47162921]
[1771818512406,0.45393986,77.957,77.932,0.47162921]
[1771818514220,0.45393986,77.955,77.932,0.47162921]
[1771818515227,0.1,77.96,77.941,0.47162921]
[1771818516322,12.82505207,77.973,77.942,0.47162921]
[1771818516703,13.27899193,77.973,77.942,0.47162921]
[1771818516904,0.45393986,77.972,77.942,0.47162921]
[1771818517514,12.82528119,77.971,77.942,0.47162921]
[1771818517720,13.27922105,77.971,77.942,0.47162921]
[1771818517910,0.45393986,77.97,77.942,0.47162921]
[1771818519420,0.45393986,77.97,77.94,8.44823608]
[1771818519421,0.45393986,77.97,77.944,0.47162921]
[1771818519626,0.1,77.98,77.951,0.47162921]
[1771818520119,0.1,77.98,77.953,0.47162921]
[1771818520708,0.55393986,77.98,77.953,0.47162921]
[1771818521309,12.82396542,77.979,77.953,0.47162921]
[1771818523445,0.55393986,77.98,77.96,8.44823608]
[1771818523624,0.55393986,77.98,77.961,0.47162921]
[1771818526715,0.45393986,77.978,77.961,0.47162921]
[1771818528106,12.82429434,77.977,77.961,0.47162921]
[1771818530132,0.4943422,77.979,77.961,0.47162921]
[1771818530954,0.4943422,77.996,77.96,8.44823608]
[1771818531234,0.4943422,77.996,77.961,0.49481969]
[1771818531540,0.4943422,77.989,77.961,0.49481969]
[1771818533732,0.4943422,77.987,77.961,0.49481969]
[1771818534920,0.4943422,77.985,77.961,0.49481969]
[1771818536532,12.82281435,77.986,77.971,0.49481969]
[1771818536748,8.54823608,78.0,77.961,12.82684412]
[1771818536749,0.1,78.0,77.972,0.49481969]
[1771818536918,0.1,78.0,77.981,0.49481969]
[1771818538020,0.5943422,78.0,77.981,0.49481969]
[1771818538221,0.4943422,77.989,77.962,0.49481969]
[1771818539534,0.4943422,77.987,77.962,0.49481969]
[1771818540437,0.4943422,77.987,77.955,0.49481969]
[1771818540635,0.4943422,77.987,77.961,0.49481969]
[1771818542443,0.4943422,77.987,77.954,12.82799978]
[1771818542444,0.4943422,77.985,77.943,0.49481969]
[1771818542625,0.4943422,77.979,77.943,0.49481969]
[1771818542940,0.4943422,77.979,77.951,0.49481969]
[1771818544545,0.4943422,77.977,77.944,0.49481969]
[1771818544839,8.44823608,77.97,77.944,0.49481969]
[1771818545052,0.4943422,77.969,77.944,0.49481969]
[1771818545255,8.44823608,77.96,77.932,0.49481969]
[1771818545545,0.4943422,77.959,77.933,0.49481969]
[1771818546745,0.4943422,77.957,77.933,0.49481969]
[1771818547726,0.4943422,77.955,77.933,0.49481969]
[1771818548643,0.4943422,77.955,77.931,0.49481969]
[1771818549143,0.4943422,77.955,77.893,3.69383402]
[1771818549144,0.4943422,77.949,77.91,8.94305577]
[1771818549330,0.4943422,77.939,77.91,0.49481969]
[1771818549645,0.4943422,77.937,77.902,0.49481969]
[1771818549822,0.4943422,77.929,77.902,0.49481969]
[1771818550026,0.4943422,77.929,77.896,0.49481969]
[1771818551340,0.4943422,77.919,77.891,0.49481969]
[1771818552238,8.44823608,77.92,77.885,0.49481969]
[1771818552239,0.4943422,77.917,77.885,0.49481969]
[1771818552935,12.83400497,77.918,77.891,0.49481969]
[1771818553141,13.32758895,77.923,77.901,0.49481969]
[1771818553663,0.4943422,77.929,77.91,8.4475002]
[1771818553951,32.07560642,77.941,77.911,0.49481969]
[1771818553952,0.4943422,77.935,77.911,0.49481969]
[1771818554451,8.4475002,77.95,77.911,0.49481969]
[1771818554672,0.4943422,77.953,77.931,0.49481969]
[1771818555835,12.82840722,77.952,77.931,0.49481969]
[1771818558547,0.4943422,77.956,77.931,0.49481969]
[1771818558749,0.45833536,77.954,77.931,0.49481969]
[1771818564441,0.45833536,77.952,77.931,0.49481969]
[1771818568060,8.4475002,77.96,77.925,0.49530673]
[1771818568061,0.45833536,77.95,77.925,0.49530673]
[1771818569059,0.45833536,77.948,77.925,0.49530673]
[1771818570139,0.45833536,77.946,77.925,0.49530673]
[1771818573571,12.8295593,77.945,77.925,0.49530673]
[1771818573770,0.45833536,77.944,77.925,0.49530673]
[1771818579065,0.45833536,77.942,77.925,0.49530673]
[1771818580670,0.45833536,77.94,77.861,103.3]
[1771818580879,0.45833536,77.939,77.9,8.4475002]
[1771818582869,0.45833536,77.937,77.901,0.49530673]
[1771818584551,0.45833536,77.937,77.903,0.49530673]
[1771818584954,0.45833536,77.935,77.903,0.49530673]
[1771818585867,0.45833536,77.935,77.911,0.49530673]
[1771818588463,0.45833536,77.929,77.911,0.49530673]
[1771818590491,12.83235807,77.928,77.911,0.49530673]
[1771818590678,0.47835656,77.927,77.911,0.49530673]
[1771818593383,12.83268742,77.926,77.911,0.49530673]
[1771818594582,13.31104398,77.926,77.911,0.49530673]